bitfinex-derivatives/quotes_SOLF0:USTF0_20240925
["timestamp","ask_amount","ask_price","bid_price","bid_amount"]
[1727246412898,10.24,150.02,149.96,10.24]
[1727246413203,10.24,150.02,149.97,10.24]
[1727246413400,10.24,150.03,149.98,10.24]
[1727246413598,10.24,150.05,149.99,10.24]
[1727246414003,3.3326,150.03,149.99,10.24]
[1727246414603,10.24,150.03,149.97,10.24]
[1727246414803,10.24,150.01,149.96,11.5908]
[1727246415700,3.3333,150.0,149.96,14.9248]
[1727246415906,10.24,150.01,149.96,11.5908]
[1727246416400,10.24,149.99,149.95,1.4101]
[1727246416606,10.24,150.0,149.95,1.4101]
[1727246417002,3.3334,149.99,149.95,4.7443]
[1727246417202,3.3334,149.99,149.95,1.4101]
[1727246418603,3.3336,149.98,149.95,1.4101]
[1727246420808,3.3335,149.99,149.95,14.9843]
[1727246423911,3.3335,149.99,149.96,3.334]
[1727246424515,3.3335,149.99,149.95,14.9843]
[1727246424913,3.3335,149.99,149.95,11.6501]
[1727246425315,10.24,150.01,149.96,10.24]
[1727246425513,10.24,150.03,149.98,10.24]
[1727246426711,3.3331,150.01,149.98,10.24]
[1727246429511,3.3331,150.0,149.98,10.24]
[1727246431717,3.333,150.01,149.98,10.24]
[1727246434024,3.3332,150.0,149.98,10.24]
[1727246434729,3.3332,150.0,149.96,14.9498]
[1727246436018,10.24,150.01,149.96,11.6159]
[1727246436215,10.24,149.98,149.95,1.4101]
[1727246436417,10.24,149.97,149.91,10.24]
[1727246436717,2.7558,150.05,149.91,10.24]
[1727246436718,10.24,149.96,149.91,10.24]
[1727246436913,10.24,149.96,149.9,10.24]
[1727246437119,10.24,149.94,149.9,10.24]
[1727246437322,3.3348,149.93,149.9,10.24]
[1727246438321,3.3348,149.93,149.9,13.5753]
[1727246438525,3.3348,149.93,149.9,3.3353]
[1727246438720,3.3348,149.93,149.9,13.5753]
[1727246441430,3.3348,149.93,149.9,3.3353]
[1727246441625,3.3348,149.93,149.91,10.24]
[1727246445423,3.3345,149.94,149.91,10.24]
[1727246448333,3.3345,149.94,149.9,3.3353]
[1727246448529,13.5745,149.94,149.9,13.5753]
[1727246450229,3.3347,149.93,149.9,13.5753]
[1727246452135,3.3345,149.94,149.92,10.24]
[1727246452629,3.3345,149.94,149.91,13.5751]
[1727246454035,3.3343,149.95,149.91,13.5751]
[1727246454429,3.3343,149.95,149.92,10.24]
[1727246454827,10.24,149.96,149.89,3.9819]
[1727246455035,10.24,149.93,149.89,3.9819]
[1727246455334,97.70357676,150.0,149.89,3.9819]
[1727246455335,10.24,149.92,149.89,1.2834]
[1727246455531,3.3353,149.9,149.89,1.2834]
[1727246455938,3.3353,149.9,149.87,10.24]
[1727246456431,3.3356,149.89,149.86,13.5762]
[1727246456831,3.3356,149.89,149.86,10.24]
[1727246457438,10.24,149.91,149.85,1.3418]
[1727246457638,10.24,149.89,149.85,1.3418]
[1727246458139,3.336,149.87,149.85,1.3418]
[1727246458334,10.24,149.88,149.85,1.3418]
[1727246458538,10.24,149.88,149.83,73.80678564]
[1727246458539,3.3363,149.86,149.83,73.80678564]
[1727246458844,10.24,149.89,149.83,77.14368564]
[1727246459340,10.24,149.84,149.77,4.0526]
[1727246459537,10.24,149.82,149.77,14.2926]
[1727246459735,1.4078,149.93,149.77,12.9735]
[1727246459936,13.5771,149.83,149.78,3.3379]
[1727246460139,10.24,149.83,149.78,3.3379]
[1727246460343,10.24,149.82,149.77,2.7335]
[1727246460639,13.5773,149.82,149.75,13.62862559]
[1727246460839,13.5773,149.82,149.75,10.24]
[1727246461040,10.24,149.82,149.75,10.24]
[1727246461232,10.24,149.82,149.74,6.00211983]
[1727246461429,10.24,149.82,149.76,10.24]
[1727246461744,3.3372,149.82,149.77,3.3382]
[1727246462940,10.24,149.81,149.77,3.3382]
[1727246463144,10.24,149.81,149.75,10.24]
[1727246463350,10.24,149.8,149.74,12.9633]
[1727246463841,10.24,149.79,149.75,3.3386]
[1727246465135,13.5778,149.79,149.74,12.9633]
[1727246465335,10.24,149.78,149.74,1.3635]
[1727246465734,13.578,149.79,149.74,11.6035]
[1727246466242,13.578,149.79,149.74,14.9422]
[1727246466444,13.578,149.79,149.74,11.6035]
[1727246466746,3.338,149.79,149.75,10.24]
[1727246466942,2.7035,149.84,149.78,10.24]
[1727246467146,23.39762432,149.93,149.78,10.24]
[1727246467147,10.24,149.85,149.78,10.24]
[1727246467446,10.24,149.83,149.78,10.24]
[1727246468043,10.24,149.83,149.77,10.24]
[1727246468647,3.3372,149.82,149.78,3.3379]
[1727246468846,10.24,149.85,149.79,10.24]
[1727246469046,10.24,149.85,149.8,10.24]
[1727246469350,3.3369,149.84,149.8,10.24]
[1727246470246,2.6881,149.92,149.81,3.3373]
[1727246470451,5.9911622,149.92,149.82,10.24]
[1727246470753,10.24,149.88,149.82,10.24]
[1727246470944,3.3364,149.86,149.82,10.24]
[1727246471555,3.3361,149.87,149.83,3.3369]
[1727246471744,2.6881,149.92,149.84,10.24]
[1727246471951,10.24,149.9,149.84,10.24]
[1727246472452,10.24,149.88,149.84,10.24]
[1727246473350,3.3362,149.87,149.84,10.24]
[1727246474353,3.3364,149.86,149.82,11.5437]
[1727246474552,10.24,149.87,149.81,11.5717]
[1727246474942,10.24,149.85,149.81,1.3317]
[1727246475555,3.3369,149.84,149.81,1.3317]
[1727246475954,3.3369,149.83,149.81,1.3317]
[1727246477849,3.3369,149.83,149.81,11.5717]
[1727246478249,2.6881,149.92,149.82,10.24]
[1727246478557,10.24,149.89,149.84,10.24]
[1727246479348,3.3361,149.87,149.84,10.24]
[1727246479545,2.6881,149.92,149.84,10.24]
[1727246479546,10.24,149.9,149.84,10.24]
[1727246479954,3.336,149.88,149.84,13.5767]
[1727246480656,3.336,149.88,149.86,10.24]
[1727246480852,3.3356,149.9,149.86,10.24]
[1727246481056,10.24,149.91,149.86,10.24]
[1727246481549,6.6668,149.99,149.88,10.24]
[1727246481760,3.41937483,150.01,149.9,10.24]
[1727246481761,2.7502,149.98,149.9,10.24]
[1727246481956,10.24,149.94,149.89,10.24]
[1727246482161,3.3352,149.91,149.89,10.24]
[1727246482354,10.24,149.94,149.89,10.24]
[1727246482655,3.3343,149.95,149.92,10.24]
[1727246482853,2.7502,149.98,149.91,10.24]
[1727246482854,10.24,149.97,149.91,10.24]
[1727246483061,10.24,149.96,149.91,10.24]
[1727246483255,3.3349,149.92,149.89,10.24]
[1727246484152,10.24,149.94,149.81,3.9825]
[1727246484352,16.03,149.96,149.87,19.3658]
[1727246484856,3.335,149.92,149.87,19.3658]
[1727246485354,3.3351,149.91,149.87,19.3658]
[1727246485756,16.03,149.94,149.84,16.03]
[1727246486156,2.7502,149.98,149.81,3.9825]
[1727246486353,16.03,149.93,149.83,16.03]
[1727246487050,3.3355,149.9,149.86,3.3362]
[1727246487456,16.03,149.93,149.86,3.3362]
[1727246488255,16.03,149.93,149.85,3.3364]
[1727246488962,3.3358,149.88,149.84,3.3367]
[1727246489553,16.03,149.93,149.83,16.03]
[1727246490154,2.7502,149.98,149.83,16.03]
[1727246490363,16.03,149.96,149.86,16.03]
[1727246491263,3.3356,149.9,149.86,16.03]
[1727246492260,3.3356,149.89,149.86,16.03]
[1727246492963,3.3355,149.9,149.86,16.03]
[1727246493563,3.3355,149.9,149.86,19.3662]
[1727246494563,3.3356,149.89,149.86,19.3662]
[1727246495463,3.3356,149.89,149.86,16.03]
[1727246496866,3.3691517,149.93,149.84,16.03]
[1727246497066,16.03,149.94,149.84,16.03]
[1727246497477,3.34045251,149.93,149.84,16.03]
[1727246497669,16.03,149.94,149.84,16.03]
[1727246498880,3.3357,149.89,149.84,19.3665]
[1727246499671,16.03,149.94,149.84,16.03]
[1727246500268,3.35024234,149.93,149.84,16.03]
[1727246500573,16.03,149.94,149.84,19.3666]
[1727246500768,3.34957489,149.93,149.84,19.3666]
[1727246500972,3.35992029,149.92,149.84,19.3666]
[1727246501176,16.03,149.94,149.84,19.3666]
[1727246501374,16.03,149.94,149.86,16.03]
[1727246501778,16.03,149.96,149.86,16.03]
[1727246502568,3.3355,149.9,149.86,19.3661]
[1727246504577,16.03,149.94,149.86,16.03]
[1727246506478,10.26,149.94,149.88,10.26]
[1727246506777,3.3355,149.9,149.88,10.26]
[1727246508075,10.26,149.94,149.88,10.26]
[1727246509382,10.26,149.92,149.87,11.642]
[1727246509575,10.26,149.92,149.87,1.382]
[1727246510177,10.26,149.92,149.88,10.26]
[1727246511184,3.3356,149.89,149.88,10.26]
[1727246511687,3.3355,149.9,149.88,10.26]
[1727246511888,10.26,149.95,149.89,10.26]
[1727246512686,3.3353,149.91,149.89,10.26]
[1727246513289,3.335,149.92,149.9,10.26]
[1727246513596,2.7502,149.98,149.9,10.26]
[1727246513597,10.26,149.96,149.9,10.26]
[1727246513792,3.3351,149.91,149.9,10.26]
[1727246514193,10.26,149.93,149.87,1.382]
[1727246514493,10.26,149.93,149.88,10.26]
[1727246515798,3.3355,149.9,149.88,10.26]
[1727246516098,10.26,149.93,149.88,10.26]
[1727246516896,3.3355,149.9,149.88,10.26]
[1727246519200,3.3356,149.89,149.88,10.26]
[1727246519496,10.26,149.92,149.87,1.382]
[1727246521000,3.3357,149.89,149.87,1.382]
[1727246521390,2.7502,149.98,149.87,11.642]
[1727246521591,3.3355,149.9,149.87,11.642]
[1727246521801,3.3355,149.9,149.89,10.26]
[1727246523696,99.10369266,149.97,149.89,10.26]
[1727246523897,107.98709266,149.97,149.92,10.26]
[1727246524402,3.3348,149.93,149.92,10.26]
[1727246525290,1.3766,150.04,149.92,10.26]
[1727246525599,10.26,150.01,149.97,10.26]
[1727246525795,3.3337,149.98,149.97,10.26]
[1727246526303,3.3337,149.98,149.94,20.6516]
[1727246527804,3.3334,149.99,149.94,20.6516]
[1727246528103,1.2825,150.03,149.94,20.6516]
[1727246528704,1.2825,150.03,149.94,17.3172]
[1727246529003,97.6928475,150.04,149.97,16.01]
[1727246529202,97.6928475,150.04,149.97,19.3438]
[1727246529397,97.6928475,150.04,149.97,16.01]
[1727246530297,16.01,150.06,149.95,2.6897]
[1727246530501,3.3329,150.02,149.98,16.01]
[1727246530798,16.01,150.06,149.97,16.01]
[1727246531099,16.01,150.04,149.95,2.6897]
[1727246531499,16.01,150.02,149.95,1.3005]
[1727246532508,16.01,150.0,149.94,1.3072]
[1727246533299,3.3342,149.96,149.94,1.3072]
[1727246534005,3.3338,149.97,149.94,1.3072]
[1727246534594,3.334,149.96,149.94,1.3072]
[1727246536506,3.3342,149.95,149.94,1.3072]
[1727246537704,3.3341,149.96,149.94,1.3072]
[1727246540001,3.3342,149.95,149.94,1.3072]
[1727246541708,3.3341,149.96,149.94,1.3072]
[1727246542712,3.3342,149.95,149.94,1.3072]
[1727246543811,3.3341,149.96,149.94,1.3072]
[1727246545411,3.3342,149.95,149.94,1.3072]
[1727246546412,3.3342,149.95,149.94,11.5572]
[1727246547614,10.25,150.0,149.94,11.5572]
[1727246547615,3.3341,149.96,149.94,11.5572]
[1727246547805,13.56932212,150.0,149.94,11.5572]
[1727246548009,10.25,150.0,149.94,11.5572]
[1727246548210,13.51694689,150.0,149.94,11.5572]
[1727246548718,3.3341,149.96,149.94,11.5572]
[1727246549515,13.60368294,150.0,149.94,1.3072]
[1727246549712,13.60368294,150.0,149.94,11.5572]
[1727246550309,3.3341,149.96,149.94,11.5572]
[1727246550510,3.3341,149.96,149.95,10.25]
[1727246551714,3.3341,149.96,149.94,11.5572]
[1727246553307,97.69793507,150.02,149.95,10.25]
[1727246553506,97.69793507,150.02,149.94,1.3072]
[1727246553507,107.94793507,150.02,149.97,10.25]
[1727246555619,3.3336,149.98,149.97,10.25]
[1727246556620,3.3336,149.98,149.94,1.3072]
[1727246556621,3.3338,149.97,149.96,10.25]
[1727246556918,10.25,150.01,149.96,10.25]
[1727246557518,3.3337,149.98,149.96,10.25]
[1727246559713,97.69793507,150.02,149.96,10.25]
[1727246560016,107.94793507,150.02,149.97,10.25]
[1727246560624,3.3333,150.0,149.97,10.25]
[1727246560818,107.94793507,150.02,149.97,10.25]
[1727246561526,3.3334,149.99,149.97,10.25]
[1727246562613,3.3336,149.98,149.97,10.25]
[1727246562921,10.25,150.01,149.95,10.25]
[1727246563923,3.3337,149.98,149.95,10.25]
[1727246564724,10.25,150.01,149.95,10.25]
[1727246565825,3.3338,149.98,149.95,10.25]
[1727246566426,3.3338,149.98,149.96,10.25]
[1727246567822,21.3741,150.05,149.9,1.2804]
[1727246567823,10.25,149.97,149.9,1.2804]
[1727246568128,10.25,149.97,149.91,10.25]
[1727246568830,3.3345,149.94,149.91,10.25]
[1727246569030,3.3345,149.94,149.92,10.25]
[1727246569325,3.3345,149.94,149.9,4.6157]
[1727246569530,3.3345,149.94,149.92,10.25]
[1727246570529,3.3344,149.95,149.92,10.25]
[1727246570932,10.25,149.98,149.91,3.3351]
[1727246571125,10.25,149.98,149.92,10.25]
[1727246571528,10.25,149.98,149.91,3.3351]
[1727246571730,10.25,149.98,149.92,10.25]
[1727246571930,4.62619392,150.0,149.89,1.4103]
[1727246572131,10.25,149.94,149.89,11.6603]
[1727246572824,3.3351,149.92,149.89,11.6603]
[1727246573735,10.25,149.94,149.89,1.4103]
[1727246573929,10.25,149.94,149.89,11.6603]
[1727246574636,3.3351,149.92,149.89,11.6603]
[1727246574938,3.3351,149.92,149.9,10.25]
[1727246575139,3.3351,149.92,149.91,10.25]
[1727246575439,3.3347,149.93,149.91,10.25]
[1727246576638,3.3347,149.93,149.92,10.25]
[1727246577446,3.3345,149.94,149.92,10.25]
[1727246577951,10.25,149.96,149.91,10.25]
[1727246578951,3.3346,149.94,149.91,10.25]
[1727246580345,3.3346,149.94,149.92,10.25]
[1727246580943,3.3347,149.93,149.9,13.57543814]
[1727246583949,3.3349,149.92,149.9,13.57543814]
[1727246584146,10.25,149.96,149.91,10.25]
[1727246584348,10.25,149.97,149.91,10.25]
[1727246584657,3.3346,149.94,149.91,10.25]
[1727246584954,3.3341,149.96,149.92,10.25]
[1727246585155,3.3341,149.96,149.94,10.25]
[1727246585950,10.25,149.99,149.89,4.80267489]
[1727246585951,3.3339,149.97,149.95,10.25]
[1727246586552,3.3336,149.98,149.96,10.25]
[1727246589356,3.3336,149.98,149.95,10.25]
[1727246590361,3.3336,149.98,149.97,10.25]
[1727246591161,3.3334,149.99,149.97,10.25]
[1727246594263,3.3331,150.0,149.97,10.25]
[1727246594466,3.3331,150.0,149.98,10.25]
[1727246595161,3.3333,149.99,149.98,10.25]
[1727246595358,3.3333,149.99,149.97,10.25]
[1727246597670,3.3332,150.0,149.97,10.25]
[1727246599672,10.25,150.03,149.97,10.25]
[1727246600066,3.3334,149.99,149.98,10.25]
[1727246600267,2.764,150.04,149.98,10.25]
[1727246600467,13.014,150.04,149.98,10.25]
[1727246600867,3.3331,150.01,149.99,10.25]
[1727246601470,3.3328,150.02,149.99,10.25]
[1727246601668,23.63968143,150.05,149.99,10.25]
[1727246601870,10.25,150.05,149.99,10.25]
[1727246603171,3.3327,150.02,149.99,10.25]
[1727246606272,3.3329,150.01,149.99,10.25]
[1727246607667,3.3327,150.02,149.99,10.25]
[1727246607875,3.3327,150.02,150.01,10.25]
[1727246609372,97.66546155,150.06,150.01,10.25]
[1727246609578,97.66546155,150.06,150.03,10.25]
[1727246609781,97.66546155,150.06,150.0,10.25]
[1727246609782,107.91546155,150.06,150.0,10.25]
[1727246609985,10.25,150.04,149.99,10.25]
[1727246611282,3.3325,150.03,150.0,10.25]
[1727246611778,107.91546155,150.06,150.0,10.25]
[1727246612581,10.25,150.05,149.98,4.1295]
[1727246612778,10.25,150.05,149.99,10.25]
[1727246613578,10.25,150.03,149.98,1.414]
[1727246613785,10.25,150.02,149.96,10.25]
[1727246614086,3.3336,149.98,149.96,10.25]
[1727246614487,10.25,150.02,149.94,1.4211]
[1727246614779,3.3337,149.98,149.95,10.25]
[1727246615377,10.25,150.01,149.95,10.25]
[1727246615575,10.25,150.01,149.94,11.6711]
[1727246615779,10.25,150.0,149.94,11.6711]
[1727246615985,10.25,150.0,149.94,10.25]
[1727246616177,3.3337,149.98,149.94,10.25]
[1727246617477,3.3338,149.97,149.94,10.25]
[1727246617683,10.25,150.0,149.94,10.25]
[1727246619687,10.25,150.0,149.96,10.25]
[1727246620388,3.3334,149.99,149.96,10.25]
[1727246623486,97.66958831,150.05,149.98,10.25]
[1727246623692,20.01,150.08,149.98,10.25]
[1727246623693,10.25,150.08,150.03,10.25]
[1727246624081,10.25,150.07,150.02,10.25]
[1727246624383,10.25,150.06,150.0,10.25]
[1727246624587,10.25,150.04,149.99,11.5903]
[1727246624789,3.3328,150.02,149.99,11.5903]
[1727246626188,3.3325,150.03,150.01,10.25]
[1727246626887,3.3325,150.03,149.99,1.3403]
[1727246626888,3.3327,150.02,149.99,11.5903]
[1727246628993,3.3329,150.01,149.99,11.5903]
[1727246629394,10.25,150.04,149.99,1.3403]
[1727246629694,10.25,150.04,149.99,11.5903]
[1727246630291,2.6689,150.12,149.99,10.25]
[1727246630292,10.25,150.03,149.99,10.25]
[1727246630489,20.01,150.08,150.0,10.25]
[1727246630693,10.25,150.05,150.0,10.25]
[1727246630894,3.3328,150.02,150.0,10.25]
[1727246631598,3.3328,150.02,149.97,2.7106]
[1727246631599,24.63995247,150.11,150.01,10.25]
[1727246631791,11.27665218,150.1,150.04,10.25]
[1727246631992,10.25,150.1,150.04,10.25]
[1727246632194,3.3319,150.06,150.03,10.25]
[1727246633095,3.3311,150.09,150.04,10.25]
[1727246633296,10.25,150.12,150.07,10.25]
[1727246633494,10.25,150.12,150.03,1.2968]
[1727246633697,10.25,150.12,150.06,10.25]
[1727246634090,10.25,150.11,150.05,10.25]
[1727246635002,10.25,150.09,150.05,10.25]
[1727246635492,3.3315,150.08,150.05,10.25]
[1727246635895,3.33733493,150.17,150.07,10.25]
[1727246636095,10.25,150.14,150.09,10.25]
[1727246636295,3.3307,150.11,150.09,10.25]
[1727246638297,10.25,150.18,150.1,10.25]
[1727246638494,1.02711875,150.17,150.13,10.25]
[1727246638697,10.25,150.18,150.13,10.25]
[1727246639298,97.66958831,150.19,150.14,10.25]
[1727246639695,97.66958831,150.19,150.09,2.6619]
[1727246639696,3.3294,150.17,150.16,10.25]
[1727246639900,97.66958831,150.19,150.16,10.25]
[1727246640307,3.3293,150.17,150.15,10.25]
[1727246641010,20.01,150.28,150.1,4.60659328]
[1727246641312,21.2939,150.26,150.15,10.25]
[1727246641511,20.01,150.24,150.17,10.25]
[1727246641708,10.25,150.2,150.14,10.25]
[1727246641907,20.01,150.22,150.14,10.25]
[1727246642101,10.25,150.18,150.14,10.25]
[1727246642505,3.3298,150.15,150.14,10.25]
[1727246642907,10.25,150.2,150.14,10.25]
[1727246643708,10.25,150.21,150.15,10.25]
[1727246643911,1.02738109,150.2,150.15,10.25]
[1727246645007,11.615,150.23,150.17,10.25]
[1727246645207,3.2872468,150.24,150.1,1.344]
[1727246645208,1.02739436,150.22,150.1,1.344]
[1727246645408,10.25,150.28,150.21,10.25]
[1727246645617,1.02770271,150.27,150.21,10.25]
[1727246645819,3.3282,150.23,150.21,10.25]
[1727246646222,10.25,150.27,150.21,10.25]
[1727246646419,3.3285,150.21,150.18,15.98]
[1727246646615,20.01,150.28,150.18,15.98]
[1727246646811,1.02769653,150.27,150.18,15.98]
[1727246647019,1.02769653,150.27,150.2,15.98]
[1727246647215,15.98,150.32,150.22,15.98]
[1727246647418,1.02785183,150.31,150.22,15.98]
[1727246647613,3.3276,150.25,150.22,15.98]
[1727246648420,3.3276,150.25,150.21,15.98]
[1727246648918,3.3279,150.24,150.21,15.98]
[1727246649513,3.3279,150.24,150.17,7.38967535]
[1727246649514,15.98,150.28,150.19,15.98]
[1727246649820,1.02775313,150.27,150.19,15.98]
[1727246650025,1.02775313,150.27,150.17,4.0317]
[1727246650026,20.01,150.31,150.23,15.98]
[1727246650223,1.0278376,150.3,150.23,15.98]
[1727246650926,3.3278,150.24,150.23,15.98]
[1727246651126,37.4094,150.32,150.23,15.98]
[1727246651423,1.02777037,150.31,150.23,15.98]
[1727246651623,1.02777037,150.31,150.21,15.98]
[1727246652412,17.00777037,150.31,150.21,15.98]
[1727246652613,1.02777037,150.3,150.21,15.98]
[1727246652813,20.01,150.29,150.21,15.98]
[1727246653023,1.02777037,150.28,150.19,15.98]
[1727246653428,35.99,150.28,150.19,15.98]
[1727246653625,3.3284,150.22,150.19,15.98]
[1727246655226,3.328,150.23,150.19,15.98]
[1727246655427,15.98,150.28,150.19,15.98]
[1727246655623,1.02770536,150.27,150.19,15.98]
[1727246655925,3.3285,150.22,150.19,15.98]
[1727246656317,20.01,150.31,150.19,15.98]
[1727246656522,1.02777001,150.3,150.21,15.98]
[1727246657529,35.99,150.31,150.21,15.98]
[1727246657827,3.328,150.24,150.21,15.98]
[1727246658218,35.99,150.31,150.21,15.98]
[1727246658526,1.02785921,150.3,150.21,15.98]
[1727246658922,1.02785921,150.29,150.21,15.98]
[1727246659124,3.3276,150.25,150.21,15.98]
[1727246660721,3.3276,150.25,150.22,15.98]
[1727246661027,3.3274,150.26,150.22,15.98]
[1727246661230,3.3274,150.26,150.23,1.3872]
[1727246661628,3.3276,150.25,150.23,1.3872]
[1727246662029,15.98,150.32,150.23,1.3872]
[1727246662226,3.3273,150.27,150.23,2.6765]
[1727246662433,3.3273,150.27,150.23,3.9876]
[1727246663625,121.03126231,150.33,150.23,3.9876]
[1727246663832,1.02817662,150.32,150.23,3.9876]
[1727246664227,101.02126231,150.33,150.23,3.9876]
[1727246665831,3.3275,150.26,150.23,3.9876]
[1727246669037,3.3276,150.25,150.23,3.9876]
[1727246669431,15.98,150.32,150.23,1.3872]
[1727246669632,3.3278,150.24,150.23,1.3872]
[1727246670331,3.3278,150.24,150.23,11.6072]
[1727246674428,3.3278,150.24,150.23,1.3872]
[1727246674640,20.01,150.29,150.18,10.22]
[1727246674836,10.22,150.24,150.18,10.22]
[1727246675034,10.22,150.24,150.17,2.7391]
[1727246675336,10.22,150.24,150.19,10.22]
[1727246676138,10.22,150.25,150.19,10.22]
[1727246677640,3.3286,150.21,150.19,10.22]
[1727246677837,3.3286,150.21,150.2,10.22]
[1727246680045,3.3288,150.2,150.19,10.22]
[1727246681344,10.22,150.24,150.17,11.6298]
[1727246682736,3.3291,150.19,150.17,11.6298]
[1727246683949,3.3291,150.18,150.17,1.4098]
[1727246684445,3.3296,150.16,150.15,1.3415]
[1727246684649,10.22,150.19,150.14,10.22]
[1727246684850,10.22,150.18,150.1,2.6597]
[1727246685039,3.3302,150.14,150.12,10.22]
[1727246685237,10.22,150.18,150.12,10.22]
[1727246685954,10.22,150.17,150.1,2.6597]
[1727246686146,10.22,150.17,150.11,10.22]
[1727246686757,3.3304,150.13,150.11,10.22]
[1727246687050,10.22,150.17,150.11,10.22]
[1727246687250,3.3307,150.12,150.1,2.6597]
[1727246687450,10.22,150.15,150.1,2.6597]
[1727246688143,3.3305,150.12,150.11,10.22]
[1727246688348,10.22,150.15,150.1,2.6597]
[1727246689653,10.22,150.14,150.1,1.3353]
[1727246689850,3.3307,150.11,150.1,1.3353]
[1727246691343,3.3307,150.11,150.06,6.71611039]
[1727246691555,3.3307,150.11,150.08,10.22]
[1727246692254,3.331,150.1,150.08,10.22]
[1727246692456,10.22,150.14,150.08,10.22]
[1727246693152,3.3308,150.11,150.08,10.22]
[1727246693456,10.22,150.15,150.1,10.22]
[1727246693661,3.3302,150.14,150.13,10.22]
[1727246694551,3.3303,150.13,150.12,10.22]
[1727246695557,3.3301,150.14,150.12,10.22]
[1727246695861,1.4091,150.19,150.13,10.22]
[1727246696057,3.3298,150.16,150.13,10.22]
[1727246696459,11.6291,150.19,150.13,10.22]
[1727246696659,3.3299,150.15,150.13,10.22]
[1727246700264,3.33,150.14,150.13,10.22]
[1727246700765,10.22,150.14,150.07,2.7153]
[1727246700968,10.22,150.14,150.08,10.22]
[1727246701264,3.3307,150.11,150.07,2.7153]
[1727246701460,10.22,150.13,150.08,10.22]
[1727246702068,3.3306,150.12,150.08,10.22]
[1727246702268,16.01,150.16,150.07,6.0469]
[1727246704569,3.3308,150.11,150.07,2.7153]
[1727246705473,16.01,150.16,150.07,2.7153]
[1727246705474,3.3309,150.1,150.07,2.7153]
[1727246705872,3.3309,150.1,150.07,1.3033]
[1727246706271,16.01,150.12,150.07,1.3033]
[1727246706675,3.3312,150.09,150.07,1.3033]
[1727246707071,16.01,150.12,150.07,1.3033]
[1727246707270,3.3313,150.08,150.07,1.3033]
[1727246707476,16.01,150.12,150.02,16.01]
[1727246709082,16.01,150.1,150.01,2.699]
[1727246709379,3.3319,150.06,150.02,3.3325]
[1727246709882,16.01,150.1,150.02,3.3325]
[1727246710879,3.3321,150.05,150.02,3.3325]
[1727246711486,3.3321,150.05,150.01,6.0319]
[1727246711877,3.3323,150.04,150.01,6.0319]
[1727246713978,2.7164,150.12,150.02,16.01]
[1727246714381,3.3317,150.07,150.03,3.3323]